Workbook

Sheet 1st Int
A1: Integral SW measurements | D1: Encoder value at 10 mm gap: | G1: 19.6316
A2: Background has been subtracted
A3: y pos in gap | B3: 0 | C3: mm | P3: 1 | Q3: 1 | R3: 2 | S3: 2 | T3: 3 | U3: 3 | V3: 4 | W3: 4
A4: Gap nominal | B4: 10 | C4: mm | D4: 15 | E4: mm | F4: 20 | G4: mm | H4: 30 | I4: mm | J4: 100 | K4: mm | O4: Gap | P4: Skew Int. | Q4: Norm. Int. | R4: Skew Grad. | S4: Normal Grad. | T4: Skew Sext. | U4: Normal Sext. | V4: Skew Oct. | W4: Normal Oct.
A5: Encoder | B5: ='DF raw data'!B30 -> 19.6325 | D5: ='DF raw data'!G30 -> 24.6346 | F5: ='DF raw data'!L30 -> 29.635 | H5: ='DF raw data'!Q30 -> 39.6323 | J5: ='DF raw data'!V30 -> 109.6334 | N5: 1 | O5: mm | P5: µTm | Q5: µTm | R5: mT | S5: mT | T5: Tm^2 | U5: Tm^2 | V5: Tm^3 | W5: Tm^3
A6: Gap actual | B6: =B5-$G$1+10 -> 10.0009 | C6: mm | D6: =D5-$G$1+10 -> 15.003 | E6: mm | F6: =F5-$G$1+10 -> 20.0034 | G6: mm | H6: =H5-$G$1+10 -> 30.0007 | I6: mm | J6: =J5-$G$1+10 -> 100.0018 | K6: mm | N6: 2 | O6: =B4 -> 10 | P6: =INDEX($B$21:$K$24,P$3,$N5*2-1) -> -2.070546667 | Q6: =INDEX($B$21:$M$25,Q$3,$N5*2) -> 9.153 | R6: =INDEX($B$21:$M$25,R$3,$N5*2-1) -> 0.6320978275 | S6: =INDEX($B$21:$M$25,S$3,$N5*2) -> -2.736679196 | T6: =INDEX($B$21:$M$25,T$3,$N5*2-1) -> 0.0814725134 | U6: =INDEX($B$21:$M$25,U$3,$N5*2) -> -0.276205711 | V6: =INDEX($B$21:$M$25,V$3,$N5*2-1) -> -0.8783161422 | W6: =INDEX($B$21:$M$25,W$3,$N5*2) -> -3.477054196
A7: x pos [m] | B7: Ix [µTm] | C7: Iy [µTm] | D7: Ix [µTm] | E7: Iy [µTm] | F7: Ix [µTm] | G7: Iy [µTm] | H7: Ix [µTm] | I7: Iy [µTm] | J7: Ix [µTm] | K7: Iy [µTm] | N7: 3 | O7: =D4 -> 15 | P7: =INDEX($B$21:$K$24,P$3,$N6*2-1) -> 0.4543466667 | Q7: =INDEX($B$21:$M$25,Q$3,$N6*2) -> -0.09666666667 | R7: =INDEX($B$21:$M$25,R$3,$N6*2-1) -> 1.037224347 | S7: =INDEX($B$21:$M$25,S$3,$N6*2) -> -2.080570513 | T7: =INDEX($B$21:$M$25,T$3,$N6*2-1) -> 0.08960179487 | U7: =INDEX($B$21:$M$25,U$3,$N6*2) -> -0.2274825175 | V7: =INDEX($B$21:$M$25,V$3,$N6*2-1) -> -0.5607109557 | W7: =INDEX($B$21:$M$25,W$3,$N6*2) -> -3.162441725
A8: ='DF raw data'!A43/1000 -> -0.01 | B8: =('DF raw data'!B43-'DF raw data'!B$14*1000)*1000 -> 0.5106 | C8: =('DF raw data'!C43-'DF raw data'!C$14*1000)*1000 -> 12.661 | D8: =('DF raw data'!G43-'DF raw data'!G$14*1000)*1000 -> 0.5401 | E8: =('DF raw data'!H43-'DF raw data'!H$14*1000)*1000 -> 1.993 | F8: =('DF raw data'!L43-'DF raw data'!L$14*1000)*1000 -> -1.798 | G8: =('DF raw data'!M43-'DF raw data'!M$14*1000)*1000 -> 2.738 | H8: =('DF raw data'!Q43-'DF raw data'!Q$14*1000)*1000 -> 1.0539 | I8: =('DF raw data'!R43-'DF raw data'!R$14*1000)*1000 -> -9.953 | J8: =('DF raw data'!V43-'DF raw data'!V$14*1000)*1000 -> 1.5886 | K8: =('DF raw data'!W43-'DF raw data'!W$14*1000)*1000 -> -3.045 | N8: 4 | O8: =F4 -> 20 | P8: =INDEX($B$21:$K$24,P$3,$N7*2-1) -> 4.296466667 | Q8: =INDEX($B$21:$M$25,Q$3,$N7*2) -> -5.816333333 | R8: =INDEX($B$21:$M$25,R$3,$N7*2-1) -> 1.141886772 | S8: =INDEX($B$21:$M$25,S$3,$N7*2) -> -2.115156469 | T8: =INDEX($B$21:$M$25,T$3,$N7*2-1) -> 0.06356990093 | U8: =INDEX($B$21:$M$25,U$3,$N7*2) -> -0.153291958 | V8: =INDEX($B$21:$M$25,V$3,$N7*2-1) -> 0.6132284382 | W8: =INDEX($B$21:$M$25,W$3,$N7*2) -> -3.005463287
A9: ='DF raw data'!A44/1000 -> -0.008 | B9: =('DF raw data'!B44-'DF raw data'!B$14*1000)*1000 -> -2.48963 | C9: =('DF raw data'!C44-'DF raw data'!C$14*1000)*1000 -> 15.745 | D9: =('DF raw data'!G44-'DF raw data'!G$14*1000)*1000 -> -4.13403 | E9: =('DF raw data'!H44-'DF raw data'!H$14*1000)*1000 -> 5.777 | F9: =('DF raw data'!L44-'DF raw data'!L$14*1000)*1000 -> -1.6071 | G9: =('DF raw data'!M44-'DF raw data'!M$14*1000)*1000 -> 3.87 | H9: =('DF raw data'!Q44-'DF raw data'!Q$14*1000)*1000 -> -5.0166 | I9: =('DF raw data'!R44-'DF raw data'!R$14*1000)*1000 -> -2.816 | J9: =('DF raw data'!V44-'DF raw data'!V$14*1000)*1000 -> -0.4726 | K9: =('DF raw data'!W44-'DF raw data'!W$14*1000)*1000 -> -1.768 | N9: 5 | O9: =H4 -> 30 | P9: =INDEX($B$21:$K$24,P$3,$N8*2-1) -> 6.2457 | Q9: =INDEX($B$21:$M$25,Q$3,$N8*2) -> -13.41133333 | R9: =INDEX($B$21:$M$25,R$3,$N8*2-1) -> 1.631015171 | S9: =INDEX($B$21:$M$25,S$3,$N8*2) -> -2.15803176 | T9: =INDEX($B$21:$M$25,T$3,$N8*2-1) -> 0.05707025058 | U9: =INDEX($B$21:$M$25,U$3,$N8*2) -> -0.09309440559 | V9: =INDEX($B$21:$M$25,V$3,$N8*2-1) -> -3.26517094 | W9: =INDEX($B$21:$M$25,W$3,$N8*2) -> 7.710737179
A10: ='DF raw data'!A45/1000 -> -0.006 | B10: =('DF raw data'!B45-'DF raw data'!B$14*1000)*1000 -> -3.221826 | C10: =('DF raw data'!C45-'DF raw data'!C$14*1000)*1000 -> 16.733 | D10: =('DF raw data'!G45-'DF raw data'!G$14*1000)*1000 -> 1.3225 | E10: =('DF raw data'!H45-'DF raw data'!H$14*1000)*1000 -> -0.196 | F10: =('DF raw data'!L45-'DF raw data'!L$14*1000)*1000 -> 0.0705 | G10: =('DF raw data'!M45-'DF raw data'!M$14*1000)*1000 -> 4.241 | H10: =('DF raw data'!Q45-'DF raw data'!Q$14*1000)*1000 -> 2.0015 | I10: =('DF raw data'!R45-'DF raw data'!R$14*1000)*1000 -> -5.21 | J10: =('DF raw data'!V45-'DF raw data'!V$14*1000)*1000 -> 0.2968 | K10: =('DF raw data'!W45-'DF raw data'!W$14*1000)*1000 -> -3.078 | N10: 6 | O10: =J4 -> 100 | P10: =INDEX($B$21:$K$24,P$3,$N9*2-1) -> 4.486166667 | Q10: =INDEX($B$21:$M$25,Q$3,$N9*2) -> -3.165666667 | R10: =INDEX($B$21:$M$25,R$3,$N9*2-1) -> 0.3277556624 | S10: =INDEX($B$21:$M$25,S$3,$N9*2) -> -0.211725913 | T10: =INDEX($B$21:$M$25,T$3,$N9*2-1) -> 0.02586896853 | U10: =INDEX($B$21:$M$25,U$3,$N9*2) -> -0.01824125874 | V10: =INDEX($B$21:$M$25,V$3,$N9*2-1) -> 3.364508061 | W10: =INDEX($B$21:$M$25,W$3,$N9*2) -> -1.302496115
A11: ='DF raw data'!A46/1000 -> -0.004 | B11: =('DF raw data'!B46-'DF raw data'!B$14*1000)*1000 -> -4.838 | C11: =('DF raw data'!C46-'DF raw data'!C$14*1000)*1000 -> 15.819 | D11: =('DF raw data'!G46-'DF raw data'!G$14*1000)*1000 -> -1.5919 | E11: =('DF raw data'!H46-'DF raw data'!H$14*1000)*1000 -> 8.527 | F11: =('DF raw data'!L46-'DF raw data'!L$14*1000)*1000 -> -0.72 | G11: =('DF raw data'!M46-'DF raw data'!M$14*1000)*1000 -> -1.589 | H11: =('DF raw data'!Q46-'DF raw data'!Q$14*1000)*1000 -> 3.091 | I11: =('DF raw data'!R46-'DF raw data'!R$14*1000)*1000 -> -8.114 | J11: =('DF raw data'!V46-'DF raw data'!V$14*1000)*1000 -> 5.518 | K11: =('DF raw data'!W46-'DF raw data'!W$14*1000)*1000 -> -5.169
A12: ='DF raw data'!A47/1000 -> -0.002 | B12: =('DF raw data'!B47-'DF raw data'!B$14*1000)*1000 -> -3.03048 | C12: =('DF raw data'!C47-'DF raw data'!C$14*1000)*1000 -> 15.533 | D12: =('DF raw data'!G47-'DF raw data'!G$14*1000)*1000 -> -3.84186 | E12: =('DF raw data'!H47-'DF raw data'!H$14*1000)*1000 -> 5.628 | F12: =('DF raw data'!L47-'DF raw data'!L$14*1000)*1000 -> 2.6076 | G12: =('DF raw data'!M47-'DF raw data'!M$14*1000)*1000 -> -1.518 | H12: =('DF raw data'!Q47-'DF raw data'!Q$14*1000)*1000 -> 3.1617 | I12: =('DF raw data'!R47-'DF raw data'!R$14*1000)*1000 -> -7.73 | J12: =('DF raw data'!V47-'DF raw data'!V$14*1000)*1000 -> 3.4177 | K12: =('DF raw data'!W47-'DF raw data'!W$14*1000)*1000 -> -1.625 | O12: Max 10-30mm | P12: =MAX(ABS(MAX(P6:P9)),ABS(MIN(P6:P9))) -> 6.2457 | Q12: =MAX(ABS(MAX(Q6:Q9)),ABS(MIN(Q6:Q9))) -> 13.41133333 | R12: =MAX(ABS(MAX(R6:R9)),ABS(MIN(R6:R9))) -> 1.631015171 | S12: 2.736679196 | T12: 0.08960179487 | U12: 0.276205711 | V12: 3.26517094 | W12: 7.710737179
A13: ='DF raw data'!A48/1000 -> 0 | B13: =('DF raw data'!B48-'DF raw data'!B$14*1000)*1000 -> -2.91516 | C13: =('DF raw data'!C48-'DF raw data'!C$14*1000)*1000 -> 7.976 | D13: =('DF raw data'!G48-'DF raw data'!G$14*1000)*1000 -> 0.671 | E13: =('DF raw data'!H48-'DF raw data'!H$14*1000)*1000 -> 0.317 | F13: =('DF raw data'!L48-'DF raw data'!L$14*1000)*1000 -> 5.0292 | G13: =('DF raw data'!M48-'DF raw data'!M$14*1000)*1000 -> -5.317 | H13: =('DF raw data'!Q48-'DF raw data'!Q$14*1000)*1000 -> 8.7982 | I13: =('DF raw data'!R48-'DF raw data'!R$14*1000)*1000 -> -15.109 | J13: =('DF raw data'!V48-'DF raw data'!V$14*1000)*1000 -> 2.8896 | K13: =('DF raw data'!W48-'DF raw data'!W$14*1000)*1000 -> -5.887 | O13: Max change 10-30mm | P13: =MAX(P6:P9)-MIN(P6:P9) -> 8.316246667 | Q13: =MAX(Q6:Q9)-MIN(Q6:Q9) -> 22.56433333
A14: ='DF raw data'!A49/1000 -> 0.002 | B14: =('DF raw data'!B49-'DF raw data'!B$14*1000)*1000 -> -0.266 | C14: =('DF raw data'!C49-'DF raw data'!C$14*1000)*1000 -> 3.95 | D14: =('DF raw data'!G49-'DF raw data'!G$14*1000)*1000 -> 4.5339 | E14: =('DF raw data'!H49-'DF raw data'!H$14*1000)*1000 -> -6.235 | F14: =('DF raw data'!L49-'DF raw data'!L$14*1000)*1000 -> 5.2526 | G14: =('DF raw data'!M49-'DF raw data'!M$14*1000)*1000 -> -10.614 | H14: =('DF raw data'!Q49-'DF raw data'!Q$14*1000)*1000 -> 6.7772 | I14: =('DF raw data'!R49-'DF raw data'!R$14*1000)*1000 -> -17.395 | J14: =('DF raw data'!V49-'DF raw data'!V$14*1000)*1000 -> 7.1512 | K14: =('DF raw data'!W49-'DF raw data'!W$14*1000)*1000 -> -1.985
A15: ='DF raw data'!A50/1000 -> 0.004 | B15: =('DF raw data'!B50-'DF raw data'!B$14*1000)*1000 -> 3.4397 | C15: =('DF raw data'!C50-'DF raw data'!C$14*1000)*1000 -> -6.932 | D15: =('DF raw data'!G50-'DF raw data'!G$14*1000)*1000 -> 8.5152 | E15: =('DF raw data'!H50-'DF raw data'!H$14*1000)*1000 -> -9.499 | F15: =('DF raw data'!L50-'DF raw data'!L$14*1000)*1000 -> 8.0312 | G15: =('DF raw data'!M50-'DF raw data'!M$14*1000)*1000 -> -15.506 | H15: =('DF raw data'!Q50-'DF raw data'!Q$14*1000)*1000 -> 13.2692 | I15: =('DF raw data'!R50-'DF raw data'!R$14*1000)*1000 -> -20.449 | J15: =('DF raw data'!V50-'DF raw data'!V$14*1000)*1000 -> 6.0313 | K15: =('DF raw data'!W50-'DF raw data'!W$14*1000)*1000 -> -8.269 | O15: Imax Limit (±): | P15: 20 | Q15: 20
A16: ='DF raw data'!A51/1000 -> 0.006 | B16: =('DF raw data'!B51-'DF raw data'!B$14*1000)*1000 -> 1.1963 | C16: =('DF raw data'!C51-'DF raw data'!C$14*1000)*1000 -> -18.228 | D16: =('DF raw data'!G51-'DF raw data'!G$14*1000)*1000 -> 6.6995 | E16: =('DF raw data'!H51-'DF raw data'!H$14*1000)*1000 -> -25.525 | F16: =('DF raw data'!L51-'DF raw data'!L$14*1000)*1000 -> 14.8132 | G16: =('DF raw data'!M51-'DF raw data'!M$14*1000)*1000 -> -25.252 | H16: =('DF raw data'!Q51-'DF raw data'!Q$14*1000)*1000 -> 20.3392 | I16: =('DF raw data'!R51-'DF raw data'!R$14*1000)*1000 -> -29.976 | J16: =('DF raw data'!V51-'DF raw data'!V$14*1000)*1000 -> 8.2532 | K16: =('DF raw data'!W51-'DF raw data'!W$14*1000)*1000 -> -6.365 | O16: Limits (±): | P16: 20 | Q16: =P16 -> 20
A17: ='DF raw data'!A52/1000 -> 0.008 | B17: =('DF raw data'!B52-'DF raw data'!B$14*1000)*1000 -> 6.3857 | C17: =('DF raw data'!C52-'DF raw data'!C$14*1000)*1000 -> -29.909 | D17: =('DF raw data'!G52-'DF raw data'!G$14*1000)*1000 -> 15.9722 | E17: =('DF raw data'!H52-'DF raw data'!H$14*1000)*1000 -> -28.623 | F17: =('DF raw data'!L52-'DF raw data'!L$14*1000)*1000 -> 18.0852 | G17: =('DF raw data'!M52-'DF raw data'!M$14*1000)*1000 -> -32.862 | H17: =('DF raw data'!Q52-'DF raw data'!Q$14*1000)*1000 -> 22.2662 | I17: =('DF raw data'!R52-'DF raw data'!R$14*1000)*1000 -> -30.343 | J17: =('DF raw data'!V52-'DF raw data'!V$14*1000)*1000 -> 6.1738 | K17: =('DF raw data'!W52-'DF raw data'!W$14*1000)*1000 -> -5.137 | O17: ΔI Limits (±): | P17: 15 | Q17: =P17 -> 15
A18: ='DF raw data'!A53/1000 -> 0.01 | B18: =('DF raw data'!B53-'DF raw data'!B$14*1000)*1000 -> 11.9562 | C18: =('DF raw data'!C53-'DF raw data'!C$14*1000)*1000 -> -49.729 | D18: =('DF raw data'!G53-'DF raw data'!G$14*1000)*1000 -> 19.3922 | E18: =('DF raw data'!H53-'DF raw data'!H$14*1000)*1000 -> -47.159 | F18: =('DF raw data'!L53-'DF raw data'!L$14*1000)*1000 -> 21.7372 | G18: =('DF raw data'!M53-'DF raw data'!M$14*1000)*1000 -> -45.277 | H18: =('DF raw data'!Q53-'DF raw data'!Q$14*1000)*1000 -> 24.9662 | I18: =('DF raw data'!R53-'DF raw data'!R$14*1000)*1000 -> -37.002 | J18: =('DF raw data'!V53-'DF raw data'!V$14*1000)*1000 -> 15.5072 | K18: =('DF raw data'!W53-'DF raw data'!W$14*1000)*1000 -> -10.462
A19: DF indice | B19: ='DF raw data'!B8 -> 163 | D19: ='DF raw data'!L8 -> 165 | F19: ='DF raw data'!L8 -> 165 | H19: ='DF raw data'!Q8 -> 166 | J19: ='DF raw data'!V8 -> 167
A21: Average dipole [µTm] | B21: =AVERAGE(B12:B14) -> -2.070546667 | C21: =AVERAGE(C12:C14) -> 9.153 | D21: =AVERAGE(D12:D14) -> 0.4543466667 | E21: -0.09666666667 | F21: 4.296466667 | G21: -5.816333333 | H21: 6.2457 | I21: -13.41133333 | J21: 4.486166667 | K21: -3.165666667 | N21: Center dipole values: average of 3 points x = -2 to x = 2mm
A22: Gradient [mT] | B22: =INDEX(LINEST(B$8:B$18,$A$8:$A$18^{1,2,3},TRUE,TRUE),1,3)/1000 -> 0.6320978275 | C22: =INDEX(LINEST(C$8:C$18,$A$8:$A$18^{1,2,3},TRUE,TRUE),1,3)/1000 -> -2.736679196 | D22: =INDEX(LINEST(D$8:D$18,$A$8:$A$18^{1,2,3},TRUE,TRUE),1,3)/1000 -> 1.037224347 | E22: =INDEX(LINEST(E$8:E$18,$A$8:$A$18^{1,2,3},TRUE,TRUE),1,3)/1000 -> -2.080570513 | F22: =INDEX(LINEST(F$8:F$18,$A$8:$A$18^{1,2,3},TRUE,TRUE),1,3)/1000 -> 1.141886772 | G22: =INDEX(LINEST(G$8:G$18,$A$8:$A$18^{1,2,3},TRUE,TRUE),1,3)/1000 -> -2.115156469 | H22: =INDEX(LINEST(H$8:H$18,$A$8:$A$18^{1,2,3},TRUE,TRUE),1,3)/1000 -> 1.631015171 | I22: =INDEX(LINEST(I$8:I$18,$A$8:$A$18^{1,2,3},TRUE,TRUE),1,3)/1000 -> -2.15803176 | J22: =INDEX(LINEST(J$8:J$18,$A$8:$A$18^{1,2,3},TRUE,TRUE),1,3)/1000 -> 0.3277556624 | K22: =INDEX(LINEST(K$8:K$18,$A$8:$A$18^{1,2,3},TRUE,TRUE),1,3)/1000 -> -0.211725913
A23: Sextupole [Tm^2] | B23: =INDEX(LINEST(B$8:B$18,$A$8:$A$18^{1,2,3},TRUE,TRUE),1,2)/1000000 -> 0.0814725134 | C23: =INDEX(LINEST(C$8:C$18,$A$8:$A$18^{1,2,3},TRUE,TRUE),1,2)/1000000 -> -0.276205711 | D23: =INDEX(LINEST(D$8:D$18,$A$8:$A$18^{1,2,3},TRUE,TRUE),1,2)/1000000 -> 0.08960179487 | E23: =INDEX(LINEST(E$8:E$18,$A$8:$A$18^{1,2,3},TRUE,TRUE),1,2)/1000000 -> -0.2274825175 | F23: =INDEX(LINEST(F$8:F$18,$A$8:$A$18^{1,2,3},TRUE,TRUE),1,2)/1000000 -> 0.06356990093 | G23: =INDEX(LINEST(G$8:G$18,$A$8:$A$18^{1,2,3},TRUE,TRUE),1,2)/1000000 -> -0.153291958 | H23: =INDEX(LINEST(H$8:H$18,$A$8:$A$18^{1,2,3},TRUE,TRUE),1,2)/1000000 -> 0.05707025058 | I23: =INDEX(LINEST(I$8:I$18,$A$8:$A$18^{1,2,3},TRUE,TRUE),1,2)/1000000 -> -0.09309440559 | J23: =INDEX(LINEST(J$8:J$18,$A$8:$A$18^{1,2,3},TRUE,TRUE),1,2)/1000000 -> 0.02586896853 | K23: =INDEX(LINEST(K$8:K$18,$A$8:$A$18^{1,2,3},TRUE,TRUE),1,2)/1000000 -> -0.01824125874
A24: Octupole [Tm^3] | B24: =INDEX(LINEST(B$8:B$18,$A$8:$A$18^{1,2,3},TRUE,TRUE),1,1)/1000000 -> -0.8783161422 | C24: =INDEX(LINEST(C$8:C$18,$A$8:$A$18^{1,2,3},TRUE,TRUE),1,1)/1000000 -> -3.477054196 | D24: =INDEX(LINEST(D$8:D$18,$A$8:$A$18^{1,2,3},TRUE,TRUE),1,1)/1000000 -> -0.5607109557 | E24: =INDEX(LINEST(E$8:E$18,$A$8:$A$18^{1,2,3},TRUE,TRUE),1,1)/1000000 -> -3.162441725 | F24: =INDEX(LINEST(F$8:F$18,$A$8:$A$18^{1,2,3},TRUE,TRUE),1,1)/1000000 -> 0.6132284382 | G24: =INDEX(LINEST(G$8:G$18,$A$8:$A$18^{1,2,3},TRUE,TRUE),1,1)/1000000 -> -3.005463287 | H24: =INDEX(LINEST(H$8:H$18,$A$8:$A$18^{1,2,3},TRUE,TRUE),1,1)/1000000 -> -3.26517094 | I24: =INDEX(LINEST(I$8:I$18,$A$8:$A$18^{1,2,3},TRUE,TRUE),1,1)/1000000 -> 7.710737179 | J24: =INDEX(LINEST(J$8:J$18,$A$8:$A$18^{1,2,3},TRUE,TRUE),1,1)/1000000 -> 3.364508061 | K24: =INDEX(LINEST(K$8:K$18,$A$8:$A$18^{1,2,3},TRUE,TRUE),1,1)/1000000 -> -1.302496115

Sheet 2nd Int
A1: 2nd Integral SW measurements
A2: Background has been subtracted | O2: Center values: average of 3 points x = -2 to x = 2
A3: y pos | B3: ='1st Int'!B3 -> 0 | C3: mm
A4: Gap nominal | B4: ='1st Int'!B4 -> 10 | C4: mm | D4: ='1st Int'!D4 -> 15 | E4: mm | F4: ='1st Int'!F4 -> 20 | G4: mm | H4: ='1st Int'!H4 -> 30 | I4: mm | J4: ='1st Int'!J4 -> 100 | K4: mm | O4: Gap | P4: Skew 2. Int. | Q4: Norm. 2. Int.
A5: Encoder | B5: ='1st Int'!B5 -> 19.6325 | D5: ='1st Int'!D5 -> 24.6346 | F5: ='1st Int'!F5 -> 29.635 | H5: ='1st Int'!H5 -> 39.6323 | J5: ='1st Int'!J5 -> 109.6334 | O5: mm | P5: µTm^2 | Q5: µTm^2
A6: Gap actual | B6: =B5-'1st Int'!$G$1+10 -> 10.0009 | C6: mm | D6: =D5-'1st Int'!$G$1+10 -> 15.003 | E6: mm | F6: =F5-'1st Int'!$G$1+10 -> 20.0034 | G6: mm | H6: =H5-'1st Int'!$G$1+10 -> 30.0007 | I6: mm | J6: =J5-'1st Int'!$G$1+10 -> 100.0018 | K6: mm | O6: =B4 -> 10 | P6: =B22 -> 1.5747 | Q6: =C22 -> 40.79
A7: ='1st Int'!A7 -> x pos [m] | B7: Jx [muTm^2] | C7: Jy [muTm^2] | D7: Jx [muTm^2] | E7: Jy [muTm^2] | F7: Jx [muTm^2] | G7: Jy [muTm^2] | H7: Jx [muTm^2] | I7: Jy [muTm^2] | J7: Jx [muTm^2] | K7: Jy [muTm^2] | O7: =D4 -> 15 | P7: =D22 -> 4.213466667 | Q7: =E22 -> 29.70533333
A8: ='DF raw data'!A43/1000 -> -0.01 | B8: =('DF raw data'!D43-'DF raw data'!D$14*1000^2) -> -3.9285 | C8: =('DF raw data'!E43-'DF raw data'!E$14*1000^2) -> 47.899 | D8: =('DF raw data'!I43-'DF raw data'!I$14*1000^2) -> 3.1534 | E8: =('DF raw data'!J43-'DF raw data'!J$14*1000^2) -> 28.239 | F8: =('DF raw data'!N43-'DF raw data'!N$14*1000^2) -> -9.5107 | G8: =('DF raw data'!O43-'DF raw data'!O$14*1000^2) -> 29.007 | H8: =('DF raw data'!S43-'DF raw data'!S$14*1000^2) -> 0.6314 | I8: =('DF raw data'!T43-'DF raw data'!T$14*1000^2) -> 19.411 | J8: =('DF raw data'!X43-'DF raw data'!X$14*1000^2) -> 2.9884 | K8: =('DF raw data'!Y43-'DF raw data'!Y$14*1000^2) -> 22.742 | O8: =F4 -> 20 | P8: =F22 -> 9.015166667 | Q8: =G22 -> 19.03333333
A9: ='DF raw data'!A44/1000 -> -0.008 | B9: =('DF raw data'!D44-'DF raw data'!D$14*1000^2) -> -3.8547 | C9: =('DF raw data'!E44-'DF raw data'!E$14*1000^2) -> 48.358 | D9: =('DF raw data'!I44-'DF raw data'!I$14*1000^2) -> -12.5135 | E9: =('DF raw data'!J44-'DF raw data'!J$14*1000^2) -> 28.507 | F9: =('DF raw data'!N44-'DF raw data'!N$14*1000^2) -> -7.1517 | G9: =('DF raw data'!O44-'DF raw data'!O$14*1000^2) -> 22.788 | H9: =('DF raw data'!S44-'DF raw data'!S$14*1000^2) -> -6.2346 | I9: =('DF raw data'!T44-'DF raw data'!T$14*1000^2) -> 20.565 | J9: =('DF raw data'!X44-'DF raw data'!X$14*1000^2) -> -0.4072 | K9: =('DF raw data'!Y44-'DF raw data'!Y$14*1000^2) -> 27.451 | O9: =H4 -> 30 | P9: =H22 -> 14.2838 | Q9: =I22 -> 13.46933333
A10: ='DF raw data'!A45/1000 -> -0.006 | B10: =('DF raw data'!D45-'DF raw data'!D$14*1000^2) -> -1.1462 | C10: =('DF raw data'!E45-'DF raw data'!E$14*1000^2) -> 50.599 | D10: =('DF raw data'!I45-'DF raw data'!I$14*1000^2) -> 7.2445 | E10: =('DF raw data'!J45-'DF raw data'!J$14*1000^2) -> 29.341 | F10: =('DF raw data'!N45-'DF raw data'!N$14*1000^2) -> 1.3895 | G10: =('DF raw data'!O45-'DF raw data'!O$14*1000^2) -> 31.802 | H10: =('DF raw data'!S45-'DF raw data'!S$14*1000^2) -> 5.7895 | I10: =('DF raw data'!T45-'DF raw data'!T$14*1000^2) -> 25.019 | J10: =('DF raw data'!X45-'DF raw data'!X$14*1000^2) -> 0.7708 | K10: =('DF raw data'!Y45-'DF raw data'!Y$14*1000^2) -> 25.158 | O10: =J4 -> 100 | P10: =J22 -> 8.353 | Q10: =K22 -> 23.479
A11: ='DF raw data'!A46/1000 -> -0.004 | B11: =('DF raw data'!D46-'DF raw data'!D$14*1000^2) -> -7.3515 | C11: =('DF raw data'!E46-'DF raw data'!E$14*1000^2) -> 44.293 | D11: =('DF raw data'!I46-'DF raw data'!I$14*1000^2) -> -1.0205 | E11: =('DF raw data'!J46-'DF raw data'!J$14*1000^2) -> 38.833 | F11: =('DF raw data'!N46-'DF raw data'!N$14*1000^2) -> 2.5308 | G11: =('DF raw data'!O46-'DF raw data'!O$14*1000^2) -> 18.353 | H11: =('DF raw data'!S46-'DF raw data'!S$14*1000^2) -> 10.7335 | I11: =('DF raw data'!T46-'DF raw data'!T$14*1000^2) -> 15.162 | J11: =('DF raw data'!X46-'DF raw data'!X$14*1000^2) -> 10.4285 | K11: =('DF raw data'!Y46-'DF raw data'!Y$14*1000^2) -> 17.671 | O11: 10-30 | P11: =MAX(ABS(MAX(P6:P9)),ABS(MIN(P6:P9))) -> 14.2838 | Q11: =MAX(ABS(MAX(Q6:Q9)),ABS(MIN(Q6:Q9))) -> 40.79
A12: ='DF raw data'!A47/1000 -> -0.002 | B12: =('DF raw data'!D47-'DF raw data'!D$14*1000^2) -> 0.3493 | C12: =('DF raw data'!E47-'DF raw data'!E$14*1000^2) -> 47.084 | D12: =('DF raw data'!I47-'DF raw data'!I$14*1000^2) -> -2.5536 | E12: =('DF raw data'!J47-'DF raw data'!J$14*1000^2) -> 40.584 | F12: =('DF raw data'!N47-'DF raw data'!N$14*1000^2) -> 5.3935 | G12: =('DF raw data'!O47-'DF raw data'!O$14*1000^2) -> 23.329 | H12: =('DF raw data'!S47-'DF raw data'!S$14*1000^2) -> 3.2854 | I12: =('DF raw data'!T47-'DF raw data'!T$14*1000^2) -> 16.803 | J12: =('DF raw data'!X47-'DF raw data'!X$14*1000^2) -> 7.5435 | K12: =('DF raw data'!Y47-'DF raw data'!Y$14*1000^2) -> 26.293 | O12: Limits (±): | P12: 60 | Q12: 60
A13: ='DF raw data'!A48/1000 -> 0 | B13: =('DF raw data'!D48-'DF raw data'!D$14*1000^2) -> 0.1201 | C13: =('DF raw data'!E48-'DF raw data'!E$14*1000^2) -> 43.067 | D13: =('DF raw data'!I48-'DF raw data'!I$14*1000^2) -> 6.2145 | E13: =('DF raw data'!J48-'DF raw data'!J$14*1000^2) -> 29.275 | F13: =('DF raw data'!N48-'DF raw data'!N$14*1000^2) -> 6.6575 | G13: =('DF raw data'!O48-'DF raw data'!O$14*1000^2) -> 15.494 | H13: =('DF raw data'!S48-'DF raw data'!S$14*1000^2) -> 21.1605 | I13: =('DF raw data'!T48-'DF raw data'!T$14*1000^2) -> 15.228 | J13: =('DF raw data'!X48-'DF raw data'!X$14*1000^2) -> 2.097 | K13: =('DF raw data'!Y48-'DF raw data'!Y$14*1000^2) -> 19.959
A14: ='DF raw data'!A49/1000 -> 0.002 | B14: =('DF raw data'!D49-'DF raw data'!D$14*1000^2) -> 4.2547 | C14: =('DF raw data'!E49-'DF raw data'!E$14*1000^2) -> 32.219 | D14: =('DF raw data'!I49-'DF raw data'!I$14*1000^2) -> 8.9795 | E14: =('DF raw data'!J49-'DF raw data'!J$14*1000^2) -> 19.257 | F14: =('DF raw data'!N49-'DF raw data'!N$14*1000^2) -> 14.9945 | G14: =('DF raw data'!O49-'DF raw data'!O$14*1000^2) -> 18.277 | H14: =('DF raw data'!S49-'DF raw data'!S$14*1000^2) -> 18.4055 | I14: =('DF raw data'!T49-'DF raw data'!T$14*1000^2) -> 8.377 | J14: =('DF raw data'!X49-'DF raw data'!X$14*1000^2) -> 15.4185 | K14: =('DF raw data'!Y49-'DF raw data'!Y$14*1000^2) -> 24.185
A15: ='DF raw data'!A50/1000 -> 0.004 | B15: =('DF raw data'!D50-'DF raw data'!D$14*1000^2) -> 12.9805 | C15: =('DF raw data'!E50-'DF raw data'!E$14*1000^2) -> 23.681 | D15: =('DF raw data'!I50-'DF raw data'!I$14*1000^2) -> 19.3345 | E15: =('DF raw data'!J50-'DF raw data'!J$14*1000^2) -> 21.172 | F15: =('DF raw data'!N50-'DF raw data'!N$14*1000^2) -> 22.9315 | G15: =('DF raw data'!O50-'DF raw data'!O$14*1000^2) -> 4.559 | H15: =('DF raw data'!S50-'DF raw data'!S$14*1000^2) -> 23.3285 | I15: =('DF raw data'!T50-'DF raw data'!T$14*1000^2) -> 5.143 | J15: =('DF raw data'!X50-'DF raw data'!X$14*1000^2) -> 12.5955 | K15: =('DF raw data'!Y50-'DF raw data'!Y$14*1000^2) -> 21.16
A16: ='DF raw data'!A51/1000 -> 0.006 | B16: =('DF raw data'!D51-'DF raw data'!D$14*1000^2) -> 11.7485 | C16: =('DF raw data'!E51-'DF raw data'!E$14*1000^2) -> 11.974 | D16: =('DF raw data'!I51-'DF raw data'!I$14*1000^2) -> 12.6035 | E16: =('DF raw data'!J51-'DF raw data'!J$14*1000^2) -> -9.55 | F16: =('DF raw data'!N51-'DF raw data'!N$14*1000^2) -> 29.1825 | G16: =('DF raw data'!O51-'DF raw data'!O$14*1000^2) -> 3.401 | H16: =('DF raw data'!S51-'DF raw data'!S$14*1000^2) -> 37.2105 | I16: =('DF raw data'!T51-'DF raw data'!T$14*1000^2) -> -9.525 | J16: =('DF raw data'!X51-'DF raw data'!X$14*1000^2) -> 11.3265 | K16: =('DF raw data'!Y51-'DF raw data'!Y$14*1000^2) -> 23.278
A17: ='DF raw data'!A52/1000 -> 0.008 | B17: =('DF raw data'!D52-'DF raw data'!D$14*1000^2) -> 17.2915 | C17: =('DF raw data'!E52-'DF raw data'!E$14*1000^2) -> -4.433 | D17: =('DF raw data'!I52-'DF raw data'!I$14*1000^2) -> 29.8775 | E17: =('DF raw data'!J52-'DF raw data'!J$14*1000^2) -> -5.369 | F17: =('DF raw data'!N52-'DF raw data'!N$14*1000^2) -> 35.6395 | G17: =('DF raw data'!O52-'DF raw data'!O$14*1000^2) -> -2.216 | H17: =('DF raw data'!S52-'DF raw data'!S$14*1000^2) -> 42.0595 | I17: =('DF raw data'!T52-'DF raw data'!T$14*1000^2) -> -1.414 | J17: =('DF raw data'!X52-'DF raw data'!X$14*1000^2) -> 16.9855 | K17: =('DF raw data'!Y52-'DF raw data'!Y$14*1000^2) -> 22.85
A18: ='DF raw data'!A53/1000 -> 0.01 | B18: =('DF raw data'!D53-'DF raw data'!D$14*1000^2) -> 27.8355 | C18: =('DF raw data'!E53-'DF raw data'!E$14*1000^2) -> -26.889 | D18: =('DF raw data'!I53-'DF raw data'!I$14*1000^2) -> 39.1585 | E18: =('DF raw data'!J53-'DF raw data'!J$14*1000^2) -> -27.885 | F18: =('DF raw data'!N53-'DF raw data'!N$14*1000^2) -> 40.0675 | G18: =('DF raw data'!O53-'DF raw data'!O$14*1000^2) -> -17.461 | H18: =('DF raw data'!S53-'DF raw data'!S$14*1000^2) -> 44.6385 | I18: =('DF raw data'!T53-'DF raw data'!T$14*1000^2) -> -9.604 | J18: =('DF raw data'!X53-'DF raw data'!X$14*1000^2) -> 21.2435 | K18: =('DF raw data'!Y53-'DF raw data'!Y$14*1000^2) -> 19.371
A20: DF indice | B20: ='DF raw data'!B8 -> 163 | D20: ='DF raw data'!G8 -> 164 | F20: ='DF raw data'!L8 -> 165 | H20: ='DF raw data'!Q8 -> 166 | J20: ='DF raw data'!V8 -> 167
A22: Average | B22: =AVERAGE(B12:B14) -> 1.5747 | C22: =AVERAGE(C12:C14) -> 40.79 | D22: 4.213466667 | E22: 29.70533333 | F22: 9.015166667 | G22: 19.03333333 | H22: 14.2838 | I22: 13.46933333 | J22: 8.353 | K22: 23.479

Sheet DF raw data
A1: Number of header lines | B1: 30 | F1: Number of header lines | G1: 30 | K1: Number of header lines | L1: 30 | P1: Number of header lines | Q1: 30 | U1: Number of header lines | V1: 30
A2: Measured by | B2: Danfysik | F2: Measured by | G2: Danfysik | K2: Measured by | L2: Danfysik | P2: Measured by | Q2: Danfysik | U2: Measured by | V2: Danfysik
A3: Operator | B3: PMHA | F3: Operator | G3: PMHA | K3: Operator | L3: PMHA | P3: Operator | Q3: PMHA | U3: Operator | V3: PMHA
A4: Data-time | B4: 30-09-2024, 23:33:17 | F4: Data-time | G4: 01-10-2024, 08:44:11 | K4: Data-time | L4: 01-10-2024, 09:07:05 | P4: Data-time | Q4: 01-10-2024, 09:29:21 | U4: Data-time | V4: 01-10-2024, 10:16:51
A5: Project | B5: 504313 | F5: Project | G5: 504313 | K5: Project | L5: 504313 | P5: Project | Q5: 504313 | U5: Project | V5: 504313
A6: Magnet type | B6: Dipole | F6: Magnet type | G6: Dipole | K6: Magnet type | L6: Dipole | P6: Magnet type | Q6: Dipole | U6: Magnet type | V6: Dipole
A7: Magnet nr | B7: 2410106 | F7: Magnet nr | G7: 2410106 | K7: Magnet nr | L7: 2410106 | P7: Magnet nr | Q7: 2410106 | U7: Magnet nr | V7: 2410106
A8: Meas. number | B8: 163 | F8: Meas. number | G8: 164 | K8: Meas. number | L8: 165 | P8: Meas. number | Q8: 166 | U8: Meas. number | V8: 167
A9: Add. info | F9: Add. info | K9: Add. info | P9: Add. info | U9: Add. info
A10: Device | B10: (SWI) STRECHED-WIRE INTEGRAL | F10: Device | G10: (SWI) STRECHED-WIRE INTEGRAL | K10: Device | L10: (SWI) STRECHED-WIRE INTEGRAL | P10: Device | Q10: (SWI) STRECHED-WIRE INTEGRAL | U10: Device | V10: (SWI) STRECHED-WIRE INTEGRAL
A11: Measurement type | B11: (HSI) HORIZONTAL SECOND INTEGRAL LINESCAN | F11: Measurement type | G11: (HSI) HORIZONTAL SECOND INTEGRAL LINESCAN | K11: Measurement type | L11: (HSI) HORIZONTAL SECOND INTEGRAL LINESCAN | P11: Measurement type | Q11: (HSI) HORIZONTAL SECOND INTEGRAL LINESCAN | U11: Measurement type | V11: (HSI) HORIZONTAL SECOND INTEGRAL LINESCAN
A12: PSMODE | B12: (DUM) Magnet power supply not defined | F12: PSMODE | G12: (DUM) Magnet power supply not defined | K12: PSMODE | L12: (DUM) Magnet power supply not defined | P12: PSMODE | Q12: (DUM) Magnet power supply not defined | U12: PSMODE | V12: (DUM) Magnet power supply not defined
A13: Bench ID | B13: ID Tower SW | F13: Bench ID | G13: ID Tower SW | K13: Bench ID | L13: ID Tower SW | P13: Bench ID | Q13: ID Tower SW | U13: Bench ID | V13: ID Tower SW
A14: Background Ix, Iy [Tm], Jx, Jy [Tm^2] | B14: 3.2878e-06 | C14: -5.3171e-05 | D14: 4.9325e-06 | E14: -6.549e-05 | F14: Background Ix, Iy [Tm], Jx, Jy [Tm^2] | G14: 3.2878e-06 | H14: -5.3171e-05 | I14: 4.9325e-06 | J14: -6.549e-05 | K14: Background Ix, Iy [Tm], Jx, Jy [Tm^2] | L14: 3.2878e-06 | M14: -5.3171e-05 | N14: 4.9325e-06 | O14: -6.549e-05 | P14: Background Ix, Iy [Tm], Jx, Jy [Tm^2] | Q14: 3.2878e-06 | R14: -5.3171e-05 | S14: 4.9325e-06 | T14: -6.549e-05 | U14: Background Ix, Iy [Tm], Jx, Jy [Tm^2] | V14: 3.2878e-06 | W14: -5.3171e-05 | X14: 4.9325e-06 | Y14: -6.549e-05
A15: Background date | B15: 30-09-2024, 18:39:33 | F15: Background date | G15: 30-09-2024, 18:39:33 | K15: Background date | L15: 30-09-2024, 18:39:33 | P15: Background date | Q15: 30-09-2024, 18:39:33 | U15: Background date | V15: 30-09-2024, 18:39:33
A16: DATA | B16: Raw data text file | F16: DATA | G16: Raw data text file | K16: DATA | L16: Raw data text file | P16: DATA | Q16: Raw data text file | U16: DATA | V16: Raw data text file
A17: Number of repetitions | B17: 8 | F17: Number of repetitions | G17: 8 | K17: Number of repetitions | L17: 8 | P17: Number of repetitions | Q17: 8 | U17: Number of repetitions | V17: 8
A18: Number of scans | B18: 1 | F18: Number of scans | G18: 1 | K18: Number of scans | L18: 1 | P18: Number of scans | Q18: 1 | U18: Number of scans | V18: 1
A19: Number of data points | B19: 11 | F19: Number of data points | G19: 11 | K19: Number of data points | L19: 11 | P19: Number of data points | Q19: 11 | U19: Number of data points | V19: 11
A20: Fraction of max scan speed | B20: 0.9 | F20: Fraction of max scan speed | G20: 0.9 | K20: Fraction of max scan speed | L20: 0.9 | P20: Fraction of max scan speed | Q20: 0.9 | U20: Fraction of max scan speed | V20: 0.9
A21: Start position [mm] | B21: -10 | F21: Start position [mm] | G21: -10 | K21: Start position [mm] | L21: -10 | P21: Start position [mm] | Q21: -10 | U21: Start position [mm] | V21: -10
A22: End position [mm] | B22: 10 | F22: End position [mm] | G22: 10 | K22: End position [mm] | L22: 10 | P22: End position [mm] | Q22: 10 | U22: End position [mm] | V22: 10
A23: Scan center [mm] | B23: 73.95 | F23: Scan center [mm] | G23: 73.95 | K23: Scan center [mm] | L23: 73.95 | P23: Scan center [mm] | Q23: 73.95 | U23: Scan center [mm] | V23: 73.95
A24: Transvers X/Y [mm] | B24: -190.22 | F24: Transvers X/Y [mm] | G24: -190.22 | K24: Transvers X/Y [mm] | L24: -190.22 | P24: Transvers X/Y [mm] | Q24: -190.22 | U24: Transvers X/Y [mm] | V24: -190.22
A25: Measurement length [mm] | B25: 6 | F25: Measurement length [mm] | G25: 6 | K25: Measurement length [mm] | L25: 6 | P25: Measurement length [mm] | Q25: 6 | U25: Measurement length [mm] | V25: 6
A26: Wire length [mm] | B26: 1360 | F26: Wire length [mm] | G26: 1360 | K26: Wire length [mm] | L26: 1360 | P26: Wire length [mm] | Q26: 1360 | U26: Wire length [mm] | V26: 1360
A27: Nanovoltmeter range [V] | B27: 0.01 | F27: Nanovoltmeter range [V] | G27: 0.01 | K27: Nanovoltmeter range [V] | L27: 0.01 | P27: Nanovoltmeter range [V] | Q27: 0.01 | U27: Nanovoltmeter range [V] | V27: 0.01
A28: PS-Gap [mm] | B28: 10 | F28: PS-Gap [mm] | G28: 15 | K28: PS-Gap [mm] | L28: 20 | P28: PS-Gap [mm] | Q28: 30 | U28: PS-Gap [mm] | V28: 100
A29: PS-Temperature [C] | B29: 24 | F29: PS-Temperature [C] | G29: 24.1 | K29: PS-Temperature [C] | L29: 24.1 | P29: PS-Temperature [C] | Q29: 24.1 | U29: PS-Temperature [C] | V29: 24.2
A30: PS-Encoder | B30: 19.6325 | F30: PS-Encoder | G30: 24.6346 | K30: PS-Encoder | L30: 29.635 | P30: PS-Encoder | Q30: 39.6323 | U30: PS-Encoder | V30: 109.6334
A33: Monitor-Index | B33: [1,1,4] | F33: Monitor-Index | G33: [1,1,4] | K33: Monitor-Index | L33: [1,1,4] | P33: Monitor-Index | Q33: [1,1,4] | U33: Monitor-Index | V33: [1,1,4]
A36: Set current [A] | B36: Current (DDCT) [A] | C36: Y [mm] | F36: Set current [A] | G36: Current (DDCT) [A] | H36: Y [mm] | K36: Set current [A] | L36: Current (DDCT) [A] | M36: Y [mm] | P36: Set current [A] | Q36: Current (DDCT) [A] | R36: Y [mm] | U36: Set current [A] | V36: Current (DDCT) [A] | W36: Y [mm]
A37: 0 | B37: 0 | C37: 264.17 | F37: 0 | G37: 0 | H37: 264.17 | K37: 0 | L37: 0 | M37: 264.17 | P37: 0 | Q37: 0 | R37: 264.17 | U37: 0 | V37: 0 | W37: 264.17
A39: Measurement-Index | B39: [1,1,11,2] | F39: Measurement-Index | G39: [1,1,11,2] | K39: Measurement-Index | L39: [1,1,11,2] | P39: Measurement-Index | Q39: [1,1,11,2] | U39: Measurement-Index | V39: [1,1,11,2]
A41: X [mm] | B41: Field integral Ix [Tmm] | C41: Field integral Iy [Tmm] | D41: 2. Field integral Jx [Tmm^2] | E41: 2. Field integral Jy [Tmm^2] | F41: X [mm] | G41: Field integral Ix [Tmm] | H41: Field integral Iy [Tmm] | I41: 2. Field integral Jx [Tmm^2] | J41: 2. Field integral Jy [Tmm^2] | K41: X [mm] | L41: Field integral Ix [Tmm] | M41: Field integral Iy [Tmm] | N41: 2. Field integral Jx [Tmm^2] | O41: 2. Field integral Jy [Tmm^2] | P41: X [mm] | Q41: Field integral Ix [Tmm] | R41: Field integral Iy [Tmm] | S41: 2. Field integral Jx [Tmm^2] | T41: 2. Field integral Jy [Tmm^2] | U41: X [mm] | V41: Field integral Ix [Tmm] | W41: Field integral Iy [Tmm] | X41: 2. Field integral Jx [Tmm^2] | Y41: 2. Field integral Jy [Tmm^2]
A42: [0, 0, 0, 0] | F42: [0, 0, 0, 0] | K42: [0, 0, 0, 0] | P42: [0, 0, 0, 0] | U42: [0, 0, 0, 0]
A43: -10 | B43: 0.0037984 | C43: -0.04051 | D43: 1.004 | E43: -17.591 | F43: -10 | G43: 0.0038279 | H43: -0.051178 | I43: 8.0859 | J43: -37.251 | K43: -10 | L43: 0.0014898 | M43: -0.050433 | N43: -4.5782 | O43: -36.483 | P43: -10 | Q43: 0.0043417 | R43: -0.063124 | S43: 5.5639 | T43: -46.079 | U43: -10 | V43: 0.0048764 | W43: -0.056216 | X43: 7.9209 | Y43: -42.748
A44: -8 | B44: 0.00079817 | C44: -0.037426 | D44: 1.0778 | E44: -17.132 | F44: -8 | G44: -0.00084623 | H44: -0.047394 | I44: -7.581 | J44: -36.983 | K44: -8 | L44: 0.0016807 | M44: -0.049301 | N44: -2.2192 | O44: -42.702 | P44: -8 | Q44: -0.0017288 | R44: -0.055987 | S44: -1.3021 | T44: -44.925 | U44: -8 | V44: 0.0028152 | W44: -0.054939 | X44: 4.5253 | Y44: -38.039
A45: -6 | B45: 6.5974e-05 | C45: -0.036438 | D45: 3.7863 | E45: -14.891 | F45: -6 | G45: 0.0046103 | H45: -0.053367 | I45: 12.177 | J45: -36.149 | K45: -6 | L45: 0.0033583 | M45: -0.04893 | N45: 6.322 | O45: -33.688 | P45: -6 | Q45: 0.0052893 | R45: -0.058381 | S45: 10.722 | T45: -40.471 | U45: -6 | V45: 0.0035846 | W45: -0.056249 | X45: 5.7033 | Y45: -40.332
A46: -4 | B46: -0.0015502 | C46: -0.037352 | D46: -2.419 | E46: -21.197 | F46: -4 | G46: 0.0016959 | H46: -0.044644 | I46: 3.912 | J46: -26.657 | K46: -4 | L46: 0.0025678 | M46: -0.05476 | N46: 7.4633 | O46: -47.137 | P46: -4 | Q46: 0.0063788 | R46: -0.061285 | S46: 15.666 | T46: -50.328 | U46: -4 | V46: 0.0088058 | W46: -0.05834 | X46: 15.361 | Y46: -47.819
A47: -2 | B47: 0.00025732 | C47: -0.037638 | D47: 5.2818 | E47: -18.406 | F47: -2 | G47: -0.00055406 | H47: -0.047543 | I47: 2.3789 | J47: -24.906 | K47: -2 | L47: 0.0058954 | M47: -0.054689 | N47: 10.326 | O47: -42.161 | P47: -2 | Q47: 0.0064495 | R47: -0.060901 | S47: 8.2179 | T47: -48.687 | U47: -2 | V47: 0.0067055 | W47: -0.054796 | X47: 12.476 | Y47: -39.197
A48: 0 | B48: 0.00037264 | C48: -0.045195 | D48: 5.0526 | E48: -22.423 | F48: 0 | G48: 0.0039588 | H48: -0.052854 | I48: 11.147 | J48: -36.215 | K48: 0 | L48: 0.008317 | M48: -0.058488 | N48: 11.59 | O48: -49.996 | P48: 0 | Q48: 0.012086 | R48: -0.06828 | S48: 26.093 | T48: -50.262 | U48: 0 | V48: 0.0061774 | W48: -0.059058 | X48: 7.0295 | Y48: -45.531
A49: 2 | B49: 0.0030218 | C49: -0.049221 | D49: 9.1872 | E49: -33.271 | F49: 2 | G49: 0.0078217 | H49: -0.059406 | I49: 13.912 | J49: -46.233 | K49: 2 | L49: 0.0085404 | M49: -0.063785 | N49: 19.927 | O49: -47.213 | P49: 2 | Q49: 0.010065 | R49: -0.070566 | S49: 23.338 | T49: -57.113 | U49: 2 | V49: 0.010439 | W49: -0.055156 | X49: 20.351 | Y49: -41.305
A50: 4 | B50: 0.0067275 | C50: -0.060103 | D50: 17.913 | E50: -41.809 | F50: 4 | G50: 0.011803 | H50: -0.06267 | I50: 24.267 | J50: -44.318 | K50: 4 | L50: 0.011319 | M50: -0.068677 | N50: 27.864 | O50: -60.931 | P50: 4 | Q50: 0.016557 | R50: -0.07362 | S50: 28.261 | T50: -60.347 | U50: 4 | V50: 0.0093191 | W50: -0.06144 | X50: 17.528 | Y50: -44.33
A51: 6 | B51: 0.0044841 | C51: -0.071399 | D51: 16.681 | E51: -53.516 | F51: 6 | G51: 0.0099873 | H51: -0.078696 | I51: 17.536 | J51: -75.04 | K51: 6 | L51: 0.018101 | M51: -0.078423 | N51: 34.115 | O51: -62.089 | P51: 6 | Q51: 0.023627 | R51: -0.083147 | S51: 42.143 | T51: -75.015 | U51: 6 | V51: 0.011541 | W51: -0.059536 | X51: 16.259 | Y51: -42.212
A52: 8 | B52: 0.0096735 | C52: -0.08308 | D52: 22.224 | E52: -69.923 | F52: 8 | G52: 0.01926 | H52: -0.081794 | I52: 34.81 | J52: -70.859 | K52: 8 | L52: 0.021373 | M52: -0.086033 | N52: 40.572 | O52: -67.706 | P52: 8 | Q52: 0.025554 | R52: -0.083514 | S52: 46.992 | T52: -66.904 | U52: 8 | V52: 0.0094616 | W52: -0.058308 | X52: 21.918 | Y52: -42.64
A53: 10 | B53: 0.015244 | C53: -0.1029 | D53: 32.768 | E53: -92.379 | F53: 10 | G53: 0.02268 | H53: -0.10033 | I53: 44.091 | J53: -93.375 | K53: 10 | L53: 0.025025 | M53: -0.098448 | N53: 45 | O53: -82.951 | P53: 10 | Q53: 0.028254 | R53: -0.090173 | S53: 49.571 | T53: -75.094 | U53: 10 | V53: 0.018795 | W53: -0.063633 | X53: 26.176 | Y53: -46.119
